{"text_format":"1","workbook":"xlsx","n_sheets":5,"sheets":["About the Workbook","Dashboard","Calculations","HIDE","Appendix A - Workpoints"],"not_rendered":{"charts":2,"images":5,"macros":1,"external_links":0,"defined_names":4,"comments":3,"pivot_tables":0},"unopened":[],"bounds":{"document_bytes":16777216,"sheet_cells":100000,"rows_first":2000,"rows_last":500,"rows_between":2000,"halvings":0,"cell_chars":16384,"cell_head_chars":4096},"cells_cut":0,"cells_raw":0,"read":"whole","date_system":"1900"}

{"sheet":"About the Workbook","index":0,"n_rows":47,"n_cols":9,"rows_kept":47,"cut":false,"hidden":false,"merged":[[44,2,44,8],[32,1,32,8],[22,1,22,8],[24,1,24,8],[34,1,34,8],[39,1,39,8],[41,0,41,8],[16,1,16,8],[0,0,0,8],[26,2,26,8],[28,2,28,8],[30,2,30,8],[14,1,14,8],[15,1,15,8]]}
[]
[]
[]
[]
[]
[]
[]
[]
[]
[]
[]
[]
[]
[null,"INSTRUCTIONS"]
[null,"All inputs are to be entered in the 'Dashboard'."]
[null,"Cells in light blue are input cells; other cells are proteteced to secure the integrity of the workbook."]
[null,"The Dashboard will display a summary of space planning results. For details of the calculations, click on the link to go to the 'Detailed Calculation'."]
[]
[null,"HOW TO USE THIS WORKBOOK"]
[]
[]
[]
[null,"1) ENTER the name of the Project / Department and the Project Address in the appropriate fields."]
[]
[null,"2) SELECT THE DESIRED ACTIVITY PROFILE\nSelect from the combo box one of the 3 profiles based on the following:"]
[]
[null,null,"Best suited to organizations with limited interaction among colleagues or teams, and features the highest proportion of individual workpoints. "]
[]
[null,null,"Best suited to organizations with moderate interaction levels and has the most balanced distribution of workpoints, with an equal proportion of individual and collaborative workpoints."]
[]
[null,null,"Best suited to organizations with a high degree of interaction between colleagues and among teams. It features the highest proportion of collaborative workpoints."]
[]
[null,"3) ENTER YOUR KNOWN DATA\nEnter the key data in the appropriate cells. Enter the new or existing space in m²u, and the appropriate population. This will determine the target occupancy which is used to calculate optimal workpoint ratios and distributions."]
[]
[null,"4) ADJUST EACH INDIVIDUAL WORKPOINT AS REQUIRED\nAn ideal workpoint quantity distribution will be automatically calculated for each category. These can be manually modified to meet specific client requirements or preferences, within a predetermined range, by using the scroll bars located beside each cell. Cell will turn orange if a quantity is too high and cell will turn blue if a quantity is too low."]
[null,null,"- Scroll the bar to the right direction to increase quantities (increases by 1 unit)"]
[null,null,"- Scroll the bar to the left direction to decrease quantities (decreases by 1 unit)"]
[null,"Click on the button 'Reset'' to reset all cells to the suggested amounts."]
[]
[null,"5) CHECK-IN ON THE SURPLUS/DEFICIT AMOUNT TO ENSURE OPTIMAL SPACE PLANNING\nShould you exceed the available space, the number will turn RED to highlight the deficit. Should you have space remaining to plan with, the number will turn GREEN to show the surplus. Simply adjust workpoint quantities accordingly."]
[]
["CLICK HERE TO START PLANNING"]
[]
[]
[null,"APPENDIX A","GCworkplace workpoints at a glance"]
[]
[null,null,null,null,null,null,null,"VERSION RELEASE DATE:","2020-04-01"]

{"sheet":"Dashboard","index":1,"n_rows":91,"n_cols":31,"rows_kept":91,"cut":false,"hidden":false,"merged":[[36,14,36,15],[24,13,24,15],[25,13,29,13],[30,13,34,13],[35,13,36,13],[25,14,25,15],[26,14,26,15],[27,14,27,15],[28,14,28,15],[29,14,29,15],[30,14,30,15],[33,14,33,15],[34,14,34,15],[31,14,31,15],[32,14,32,15],[36,1,39,1],[40,1,43,1],[24,1,24,2],[25,1,27,1],[28,1,30,1],[31,1,33,1],[2,3,2,13],[3,3,3,13],[7,15,7,23],[35,1,35,2],[35,14,35,15],[25,3,27,3],[28,3,30,3],[31,3,33,3],[7,6,7,13],[8,6,8,10],[9,6,9,10],[10,6,10,10]]}
["GCworkplace Space Planning Workbook"]
[]
[null,null,"Project Name / Department",null,null,null,null,null,null,null,null,null,null,null,null,null,null,null,"Check remaining Surplus / Deficit:",{"$f":"AE13","v":1.9200000000000017}]
[null,null,"Project Address"]
[]
[]
[]
[null,null,"Choose activity profile",1,null,null,"WORKPOINT DISTRIBUTION COMPARISON",null,null,null,null,null,null,null,null,"SPACE PLANNING SUMMARY:"]
[null,null,null,null,null,null,"Activity Profile",null,null,null,null,"Autonomous","Balanced","Interactive",null,null,null,null,null,null,null,null,null,null,null,null,null,null,null,"Planning Space",{"$f":"Calculations!K67","v":708}]
[null,null,null,null,null,null,"Individual Workpoints",null,null,null,null,"50-65%","30-50%","5-30%",null,null,null,null,null,null,null,null,null,null,null,null,null,null,null,"Total Individual Workpoints Space",{"$f":"Calculations!K68","v":380}]
[null,null,"Input key data",null,null,null,"Collaborative and Support Spaces",null,null,null,null,"35-50%","50-70%","70-95%",null,null,null,null,null,null,null,null,null,null,null,null,null,null,null,"Total Collaborative Space",{"$f":"Calculations!K69","v":224}]
[null,null,null,null,null,null,null,null,null,null,null,null,null,null,null,null,null,null,null,null,null,null,null,null,null,null,null,null,null,"Total Support Space",{"$f":"Calculations!K70","v":102.08}]
[null,null,"Space Solution in m2u:",1200,"(NOT including any Special Purpose Space)",null,null,null,null,null,null,null,null,null,null,null,null,null,null,null,null,null,null,null,null,null,null,null,null,"Remaining Surplus / Deficit",{"$f":"AE9-AE10-AE11-AE12","v":1.9200000000000017}]
[null,null,"Target occupancy*:",{"$f":"Calculations!I12","v":100},"*obtained by dividing the space solution by 12m2u\n",null,null,null,null,null,null,null,"Total Space =",{"$f":"Calculations!I17","v":1200}]
[null,null,"Actual Population:",null,"(excluding any occupants working in SPS)",null,null,null,null,null,null,null,"Circulation (35%) =",{"$f":"-Calculations!I18","v":-420}]
[null,null,"Built-in growth:",{"$f":"Calculations!I14","v":100},null,null,null,null,null,null,null,null,"Building Fit Factor (6%) =",{"$f":"-Calculations!I19","v":-72},null,null,null,null,null,null,null,null,null,null,null,null,null,null,null,{"$f":"AD9","v":"Planning Space"},{"$f":"AE9","v":708}]
[null,null,"Full Time SPS Population:",null,"(only when directly adjacent to the general office)",null,null,null,null,null,null,null,"REMAINING SPACE FOR PLANNING =",{"$f":"Calculations!I21","v":708},null,null,null,null,null,null,null,null,null,null,null,null,null,null,null,{"$f":"IF(AE13>0,\"Surplus\",\"Deficit\")","v":"Surplus"},{"$f":"ABS(AE13)","v":1.9200000000000017}]
[]
[null,null,null,null,null,null,null,null,null,null,null,null,null,null,null,null,null,null,null,null,null,null,"Total allocated:",{"$f":"SUM(AE10:AE12)","v":706.08}]
[]
[]
[null,null,"Adjust number of workpoints"]
[]
[]
[null,"INDIVIDUAL WORKPOINTS",null,"Total number of seats","Suggested quantity","Quantity",null,"Average size",null,"Required area","Min. / Max.\nsugg. qty.","Gap analysis",null,"SUPPORT SPACES",null,null,"Suggested quantity","Quantity",null,"Average size",null,"Required area","Min. / Max.\nsugg. qty.","Gap analysis"]
[null,"Primary Individual Open","Typical Workstation",{"$f":"F26+F27+F28","v":81},{"$f":"Calculations!E27","v":58},58,"x",3.5,"=",{"$f":"Calculations!K27","v":203},{"$f":"HIDE!E8&\" / \"&HIDE!F8","v":"12 / 65"},{"$f":"IF(F26<HIDE!E8, \"-\"&HIDE!E8-F26, IF(F26>HIDE!F8, \"+\"&F26-HIDE!F8, 0))","v":0},null,"General Purpose Office","Kitchenette",null,{"$f":"Calculations!E50","v":1},1,"x",15,"=",{"$f":"Calculations!K50","v":15},{"$f":"HIDE!E25&\" / \"&Q26","v":"1 / 1"},{"$f":"IF(R26<HIDE!E25, \"-\"&HIDE!E25-R26, IF(R26>Q26, \"+\"&R26-Q26, 0))","v":0},null,null,{"$f":"HIDE!M8","v":3.5},{"$f":"IF($D$14<25,5,IF(AND($D$14>=25,$D$14<50),10,15))","v":15}]
[null,null,"Touchdown",null,{"$f":"Calculations!E28","v":15},15,"x",1.5,"=",{"$f":"Calculations!K28","v":22.5},{"$f":"HIDE!E9&\" / \"&HIDE!F9","v":"8 / 30"},{"$f":"IF(F27<HIDE!E9, \"-\"&HIDE!E9-F27, IF(F27>HIDE!F9, \"+\"&F27-HIDE!F9, 0))","v":0},null,null,"Equipment Area",null,{"$f":"Calculations!E51","v":2},2,"x",5,"=",{"$f":"Calculations!K51","v":10},{"$f":"HIDE!E26&\" / \"&HIDE!F26","v":"1 / 2"},{"$f":"IF(R27<HIDE!E26, \"-\"&HIDE!E26-R27, IF(R27>HIDE!F26, \"+\"&R27-HIDE!F26, 0))","v":0},null,null,{"$f":"HIDE!M9","v":1.5},{"$f":"HIDE!M26","v":5}]
[null,null,"Focus Pod",null,{"$f":"Calculations!E29","v":8},8,"x",4,"=",{"$f":"Calculations!K29","v":32},{"$f":"HIDE!E10&\" / \"&HIDE!F10","v":"2 / 12"},{"$f":"IF(F28<HIDE!E10, \"-\"&HIDE!E10-F28, IF(F28>HIDE!F10, \"+\"&F28-HIDE!F10, 0))","v":0},null,null,"Lockers Area (area is per FTE)",null,{"$f":"Calculations!E52","v":100},100,"x",0.5,"=",{"$f":"Calculations!K52","v":50},{"$f":"HIDE!E27&\" / \"&HIDE!F27","v":"50 / 125"},{"$f":"IF(R28<HIDE!E27, \"-\"&HIDE!E27-R28, IF(R28>HIDE!F27, \"+\"&R28-HIDE!F27, 0))","v":0},null,null,{"$f":"HIDE!M10","v":4},{"$f":"HIDE!M27","v":0.5}]
[null,"Primary Individual      Enclosed","Focus Room",{"$f":"F29+F30+F31","v":9},{"$f":"Calculations!E30","v":9},9,"x",7.5,"=",{"$f":"Calculations!K30","v":67.5},{"$f":"HIDE!E11&\" / \"&HIDE!F11","v":"4 / 12"},{"$f":"IF(F29<HIDE!E11, \"-\"&HIDE!E11-F29, IF(F29>HIDE!F11, \"+\"&F29-HIDE!F11, 0))","v":0},null,null,"Shared Storage",null,{"$f":"Calculations!E53","v":1},1,"x",10,"=",{"$f":"Calculations!K53","v":10},{"$f":"HIDE!E28&\" / \"&HIDE!F28","v":"1 / 2"},{"$f":"IF(R29<HIDE!E28, \"-\"&HIDE!E28-R29, IF(R29>HIDE!F28, \"+\"&R29-HIDE!F28, 0))","v":0},null,null,{"$f":"HIDE!M11","v":7.5},{"$f":"HIDE!M28","v":10}]
[null,null,"Ministerial Dedicated (Deputy Head or Minister)",null,{"$f":"Calculations!E31","v":0},0,"x",29,"=",{"$f":"Calculations!K31","v":0},{"$f":"HIDE!E12&\" / \"&HIDE!F12","v":"0 / 0"},{"$f":"IF(F30<HIDE!E12, \"-\"&HIDE!E12-F30, IF(F30>HIDE!F12, \"+\"&F30-HIDE!F12, 0))","v":0},null,null,"Dedicated Server/Telecom Room - 1 per floor",null,{"$f":"Calculations!E54","v":1},1,"x",10,"=",{"$f":"Calculations!K54","v":10},"N/A","N/A",null,null,{"$f":"HIDE!M12","v":29},{"$f":"HIDE!M29","v":10}]
[null,null,"Study (3m2 per occupant, min. 10 occupants)",null,{"$f":"Calculations!E32","v":0},0,"x",3,"=",{"$f":"Calculations!K32","v":0},{"$f":"Calculations!E32&\" / \"&HIDE!F13","v":"0 / 20"},{"$f":"IF(F31<Calculations!E32, \"-\"&Calculations!E32-F31, IF(F31>HIDE!F13, \"+\"&F31-HIDE!F13, 0))","v":0},null,"Extra workpoints to support adjacent SPS population","Phonebooth",null,{"$f":"Calculations!E55","v":0},0,"x",5,"=",{"$f":"Calculations!K55","v":0},{"$f":"HIDE!E30&\" / \"&HIDE!F30","v":"0 / 0"},{"$f":"IF(R31<HIDE!E30, \"-\"&HIDE!E30-R31, IF(R31>HIDE!F30, \"+\"&R31-HIDE!F30, 0))","v":0},null,null,{"$f":"HIDE!M13","v":3},{"$f":"HIDE!M30","v":5}]
[null,"Secondary Individual ","Reflection Point",{"$f":"F32+F33+F34","v":11},{"$f":"Calculations!E33","v":4},4,"x",5,"=",{"$f":"Calculations!K33","v":20},{"$f":"HIDE!E14&\" / \"&HIDE!F14","v":"1 / 4"},{"$f":"IF(F32<HIDE!E14, \"-\"&HIDE!E14-F32, IF(F32>HIDE!F14, \"+\"&F32-HIDE!F14, 0))","v":0},null,null,"Lounge",null,{"$f":"Calculations!E56","v":0},0,"x",20,"=",{"$f":"Calculations!K56","v":0},{"$f":"HIDE!E31&\" / \"&HIDE!F31","v":"0 / 0"},{"$f":"IF(R32<HIDE!E31, \"-\"&HIDE!E31-R32, IF(R32>HIDE!F31, \"+\"&R32-HIDE!F31, 0))","v":0},null,null,{"$f":"HIDE!M14","v":5},{"$f":"HIDE!M31","v":20}]
[null,null,"Active Workstation",null,{"$f":"Calculations!E34","v":1},1,"x",5,"=",{"$f":"Calculations!K34","v":5},{"$f":"HIDE!E15&\" / \"&HIDE!F15","v":"0 / 4"},{"$f":"IF(F33<HIDE!E15, \"-\"&HIDE!E15-F33, IF(F33>HIDE!F15, \"+\"&F33-HIDE!F15, 0))","v":0},null,null,"Work Room",null,{"$f":"Calculations!E57","v":0},0,"x",15,"=",{"$f":"Calculations!K57","v":0},{"$f":"HIDE!E32&\" / \"&HIDE!F32","v":"0 / 0"},{"$f":"IF(R33<HIDE!E32, \"-\"&HIDE!E32-R33, IF(R33>HIDE!F32, \"+\"&R33-HIDE!F32, 0))","v":0},null,null,{"$f":"HIDE!M15","v":5},{"$f":"HIDE!M32","v":15}]
[null,null,"Phonebooth",null,{"$f":"Calculations!E35","v":6},6,"x",5,"=",{"$f":"Calculations!K35","v":30},{"$f":"HIDE!E16&\" / \"&HIDE!F16","v":"4 / 8"},{"$f":"IF(F34<HIDE!E16, \"-\"&HIDE!E16-F34, IF(F34>HIDE!F16, \"+\"&F34-HIDE!F16, 0))","v":0},null,null,"Kitchenette",null,{"$f":"Calculations!E58","v":0},0,"x",15,"=",{"$f":"Calculations!K58","v":0},{"$f":"HIDE!E33&\" / \"&Q34","v":"0 / 0"},{"$f":"IF(R34<HIDE!E33, \"-\"&HIDE!E33-R34, IF(R34>Q34, \"+\"&R34-Q34, 0))","v":0},null,null,{"$f":"HIDE!M16","v":5},{"$f":"IF($D$14<25,5,IF(AND($D$14>=25,$D$14<50),10,15))","v":15}]
[null,null,"Total number of individual seats",{"$f":"SUM(D26:D34)","v":101},null,null,null,null,"Total space for individual workpoints",{"$f":"SUM(J26:J34)","v":380},null,null,null,null,"Lockers Area (area is per FTE)",null,{"$f":"Calculations!E59","v":0},0,"x",0.5,"=",{"$f":"Calculations!K59","v":0},{"$f":"HIDE!E34&\" / \"&HIDE!F34","v":"0 / 0"},{"$f":"IF(R35<HIDE!E34, \"-\"&HIDE!E34-R35, IF(R35>HIDE!F34, \"+\"&R35-HIDE!F34, 0))","v":0},null,null,null,{"$f":"HIDE!M34","v":0.5}]
[null,"COLLABORATIVE WORKPOINTS",null,"Total number of seats","Suggested quantity","Quantity",null,"Average size",null,"Required area","Min. / Max.\nsugg. qty.","Gap analysis",null,"Other","Custom support space",null,{"$f":"Calculations!E60","v":1},1,"x",{"$f":"$N$17*0.01","v":7.08},"=",{"$f":"R36*T36","v":7.08},{"$f":"HIDE!E35&\" / \"&HIDE!F35","v":"0 / 11"},{"$f":"IF(R36<HIDE!E35, \"-\"&HIDE!E35-R36, IF(R36>HIDE!F35, \"+\"&R36-HIDE!F35, 0))","v":0}]
[null,"Collaborative Open","Chat Point",{"$f":"SUM(F37)*4","v":4},{"$f":"Calculations!E39","v":1},1,"x",3,"=",{"$f":"Calculations!K39","v":3},{"$f":"HIDE!E17&\" / \"&HIDE!F17","v":"1 / 5"},{"$f":"IF(F37<HIDE!E17, \"-\"&HIDE!E17-F37, IF(F37>HIDE!F17, \"+\"&F37-HIDE!F17, 0))","v":0},null,null,"Custom Workpoint",null,{"$f":"Calculations!E61","v":0},0,"x",0,"=",{"$f":"R37*T37","v":0},{"$f":"HIDE!E36&\" / \"&HIDE!F36","v":"0 / 0"},{"$f":"IF(R37<HIDE!E36, \"-\"&HIDE!E36-R37, IF(R37>HIDE!F36, \"+\"&R37-HIDE!F36, 0))","v":0},null,null,{"$f":"HIDE!M17","v":3}]
[null,null,"Huddle ",{"$f":"SUM(F38)*4","v":8},{"$f":"Calculations!E40","v":2},2,"x",8,"=",{"$f":"Calculations!K40","v":16},{"$f":"HIDE!E18&\" / \"&HIDE!F18","v":"1 / 6"},{"$f":"IF(F38<HIDE!E18, \"-\"&HIDE!E18-F38, IF(F38>HIDE!F18, \"+\"&F38-HIDE!F18, 0))","v":0},null,null,null,null,null,null,null,null,"Total space for support spaces",{"$f":"SUM(V26:V37)","v":102.08},null,null,null,null,{"$f":"HIDE!M18","v":8}]
[null,null,"Teaming Area",{"$f":"SUM(F39)*10","v":10},{"$f":"Calculations!E41","v":1},1,"x",15,"=",{"$f":"Calculations!K41","v":15},{"$f":"HIDE!E19&\" / \"&HIDE!F19","v":"1 / 4"},{"$f":"IF(F39<HIDE!E19, \"-\"&HIDE!E19-F39, IF(F39>HIDE!F19, \"+\"&F39-HIDE!F19, 0))","v":0},null,null,null,null,null,null,null,null,null,null,null,null,null,null,{"$f":"HIDE!M19","v":15}]
[null,null,"Lounge",{"$f":"SUM(F40)*10","v":10},{"$f":"Calculations!E42","v":1},1,"x",20,"=",{"$f":"Calculations!K42","v":20},{"$f":"HIDE!E20&\" / \"&HIDE!F20","v":"1 / 2"},{"$f":"IF(F40<HIDE!E20, \"-\"&HIDE!E20-F40, IF(F40>HIDE!F20, \"+\"&F40-HIDE!F20, 0))","v":0},null,null,null,null,null,null,null,null,null,null,null,null,null,null,{"$f":"HIDE!M20","v":20}]
[null,"Collaborative Enclosed","Work Room",{"$f":"SUM(F41)*4","v":8},{"$f":"Calculations!E43","v":2},2,"x",15,"=",{"$f":"Calculations!K43","v":30},{"$f":"HIDE!E21&\" / \"&HIDE!F21","v":"2 / 6"},{"$f":"IF(F41<HIDE!E21, \"-\"&HIDE!E21-F41, IF(F41>HIDE!F21, \"+\"&F41-HIDE!F21, 0))","v":0},null,null,null,null,null,null,null,null,null,null,null,null,null,null,{"$f":"HIDE!M21","v":15}]
[null,null,"Project Room",{"$f":"SUM(F42)*6","v":6},{"$f":"Calculations!E44","v":1},1,"x",20,"=",{"$f":"Calculations!K44","v":20},{"$f":"HIDE!E22&\" / \"&HIDE!F22","v":"0 / 6"},{"$f":"IF(F42<HIDE!E22, \"-\"&HIDE!E22-F42, IF(F42>HIDE!F22, \"+\"&F42-HIDE!F22, 0))","v":0},null,null,null,null,null,null,null,null,null,null,null,null,null,null,{"$f":"HIDE!M22","v":20}]
[null,null,"Medium Meeting Room",{"$f":"SUM(F43)*12","v":24},{"$f":"Calculations!E45","v":2},2,"x",30,"=",{"$f":"Calculations!K45","v":60},{"$f":"HIDE!E23&\" / \"&HIDE!F23","v":"1 / 3"},{"$f":"IF(F43<HIDE!E23, \"-\"&HIDE!E23-F43, IF(F43>HIDE!F23, \"+\"&F43-HIDE!F23, 0))","v":0},null,null,null,null,null,null,null,null,null,null,null,null,null,null,{"$f":"HIDE!M23","v":30}]
[null,null,"Large Meeting Room",{"$f":"SUM(F44)*20","v":20},{"$f":"Calculations!E46","v":1},1,"x",60,"=",{"$f":"Calculations!K46","v":60},{"$f":"HIDE!E24&\" / \"&HIDE!F24","v":"0 / 2"},{"$f":"IF(F44<HIDE!E24, \"-\"&HIDE!E24-F44, IF(F44>HIDE!F24, \"+\"&F44-HIDE!F24, 0))","v":0},null,null,null,null,null,null,null,null,null,null,null,null,null,null,{"$f":"HIDE!M24","v":60}]
[null,null,"Estimated number of collaborative seats",{"$f":"SUM(D37:D44)","v":90},null,null,null,null,"Total space for collaborative workpoints",{"$f":"SUM(J37:J44)","v":224}]
[]
[]
[]
[]
[]
[]
[]
[]
[]
[]
[]
[]
[]
[]
[]
[]
[]
[]
[]
[]
[]
[]
[]
[]
[]
[]
[]
[]
[]
[]
[]
[]
[]
[]
[]
[]
[]
[]
[]
[]
[]
[]
[]
[null,null,"AUTONOMOUS"]
[null,null,"BALANCED"]
[null,null,"INTERACTIVE"]

{"sheet":"Calculations","index":2,"n_rows":73,"n_cols":16,"rows_kept":73,"cut":false,"hidden":false,"merged":[[22,0,22,10],[2,13,2,15],[5,13,5,15],[9,1,9,7],[4,13,4,16],[3,2,3,9],[7,0,7,10],[53,13,53,14],[29,0,31,0],[29,2,31,2],[32,0,34,0],[32,2,34,2],[37,0,37,1],[38,0,41,0],[58,13,58,14],[59,0,60,0],[66,0,66,8],[67,0,67,8],[63,0,63,10],[1,0,1,11],[2,2,2,9],[68,0,68,8],[69,0,69,8],[70,0,70,8],[54,0,58,0],[42,0,45,0],[46,0,46,1],[48,0,48,1],[49,0,53,0],[12,6,12,7],[13,1,13,7],[14,1,14,7],[25,0,25,1],[26,0,28,0],[26,2,28,2]]}
[]
[{"$f":"IF(Dashboard!$D$8=1,\"AUTONOMOUS\",IF(Dashboard!$D$8=2,\"BALANCED\",IF(Dashboard!$D$8=3,\"INTERACTIVE\",\"N/A\")))&\" PROFILE\"","v":"AUTONOMOUS PROFILE"}]
[null,"Project Name / Department",{"$f":"IF(Dashboard!D3<>\"\",Dashboard!D3,\"n/a\")","v":"n/a"},null,null,null,null,null,null,null,null,null,null,"SPACE PLANNING SUMMARY"]
[null,"Project Address",{"$f":"IF(Dashboard!D4<>\"\",Dashboard!D4,\"n/a\")","v":"n/a"},null,null,null,null,null,null,null,null,null,null,"REMAINING SURPLUS / DEFICIT","=",{"$f":"K71","v":1.9199999999999591}]
[]
[]
[]
["KEY DATA (from Dashboard):"]
[]
[null,"Space Solution in m2u (NOT including any Special Purpose Space):",null,null,null,null,null,null,{"$f":"Dashboard!D13","v":1200}]
[]
[null,null,null,null,null,null,null,"Target Occupancy*:",{"$f":"I10/12","v":100}]
[null,null,null,null,null,null,"Actual Population:",null,{"$f":"Dashboard!D15","v":0}]
[null,"Built-in growth:",null,null,null,null,null,null,{"$f":"I12-I13","v":100}]
[null,"Full Time Special Purpose Space Population:",null,null,null,null,null,null,{"$f":"Dashboard!D17","v":0}]
[]
[null,null,null,null,null,null,null,"Total Space =",{"$f":"I10","v":1200}]
[null,null,null,null,null,null,null,"Circulation (35%)= ",{"$f":"I17*0.35","v":420}]
[null,null,null,null,null,null,null,"Building Fit Factor (6%)= ",{"$f":"I17*0.06","v":72}]
[]
[null,null,null,null,null,null,null,"REMAINING SPACE FOR PLANNING =",{"$f":"I17 -SUM(I18) -SUM(I19)","v":708}]
[]
["WORKPOINT QUANTITIES"]
[]
[]
["INDIVIDUAL      WORKPOINTS",null,"Total number of seats","Formula","Suggested quantity","rounded","Adjust quantities as required",null,"Average size (m²)",null,"Required Area"]
["Primary Individual Open","Typical Workstation",{"$f":"F27+F28+F29","v":81},{"$f":"CHOOSE(Dashboard!$D$8,HIDE!H8,HIDE!I8,HIDE!J8)","v":58},{"$f":"ROUND($I$12*D27/100,0)","v":58},{"$f":"ROUND(G27,0)","v":58},{"$f":"Dashboard!F26","v":58},"x",{"$f":"Dashboard!H26","v":3.5},"=",{"$f":"F27*I27","v":203}]
[null,"Touchdown",null,{"$f":"CHOOSE(Dashboard!$D$8,HIDE!H9,HIDE!I9,HIDE!J9)","v":15},{"$f":"ROUND($I$12*D28/100,0)","v":15},{"$f":"ROUND(G28,0)","v":15},{"$f":"Dashboard!F27","v":15},"x",{"$f":"Dashboard!H27","v":1.5},"=",{"$f":"F28*I28","v":22.5}]
[null,"Focus Pod",null,{"$f":"CHOOSE(Dashboard!$D$8,HIDE!H10,HIDE!I10,HIDE!J10)","v":8},8,8,{"$f":"Dashboard!F28","v":8},"x",{"$f":"Dashboard!H28","v":4},"=",32]
["Primary Individual      Enclosed","Focus Room",{"$f":"F30+F31+F32","v":9},{"$f":"CHOOSE(Dashboard!$D$8,HIDE!H11,HIDE!I11,HIDE!J11)","v":9},9,9,{"$f":"Dashboard!F29","v":9},"x",{"$f":"Dashboard!H29","v":7.5},"=",67.5]
[null,"Ministerial Dedicated (Deputy Head or Minister) total includes 9m2 washroom.",null,{"$f":"CHOOSE(Dashboard!$D$8,HIDE!H12,HIDE!I12,HIDE!J12)","v":0},0,0,{"$f":"Dashboard!F30","v":0},"x",{"$f":"Dashboard!H30","v":29},"=",0]
[null,"Study (3m2 per occupant, min. 10 occupants)",null,{"$f":"CHOOSE(Dashboard!$D$8,HIDE!H13,HIDE!I13,HIDE!J13)","v":0},{"$f":"IF(HIDE!$E$13<10,0,HIDE!$E$13)","v":0},0,{"$f":"Dashboard!F31","v":0},"x",{"$f":"Dashboard!H31","v":3},"=",0]
["Secondary Individual ","Reflection Point",{"$f":"F33+F34+F35","v":11},{"$f":"CHOOSE(Dashboard!$D$8,HIDE!H14,HIDE!I14,HIDE!J14)","v":4},{"$f":"ROUND($I$12*D33/100,0)","v":4},4,{"$f":"Dashboard!F32","v":4},"x",{"$f":"Dashboard!H32","v":5},"=",20]
[null,"Active Workstation",null,{"$f":"CHOOSE(Dashboard!$D$8,HIDE!H15,HIDE!I15,HIDE!J15)","v":1},1,1,{"$f":"Dashboard!F33","v":1},"x",{"$f":"Dashboard!H33","v":5},"=",5]
[null,"Phonebooth",null,{"$f":"CHOOSE(Dashboard!$D$8,HIDE!H16,HIDE!I16,HIDE!J16)","v":6},6,6,{"$f":"Dashboard!F34","v":6},"x",{"$f":"Dashboard!H34","v":5},"=",30]
[null,"Total no. of individual seats",{"$f":"SUM(G27:G35)","v":101},null,null,null,null,null,null,"Total space for individual workpoints",{"$f":"SUM(K27:K35)","v":380}]
[]
["COLLABORATIVE WORKPOINTS",null,"Total number of seats","Formula","Suggested quantity","rounded","Adjust quantities as required",null,"Average size (m²)",null,"Required Area"]
["Collaborative Open","Chat Point",{"$f":"SUM(F39)*4","v":4},{"$f":"CHOOSE(Dashboard!$D$8,HIDE!H17,HIDE!I17,HIDE!J17)","v":1},{"$f":"ROUND($I$12*D39/100,0)","v":1},{"$f":"ROUND(G39,0)","v":1},{"$f":"Dashboard!F37","v":1},"x",{"$f":"Dashboard!H37","v":3},"=",{"$f":"F39*I39","v":3}]
[null,"Huddle ",{"$f":"SUM(F40)*4","v":8},{"$f":"CHOOSE(Dashboard!$D$8,HIDE!H18,HIDE!I18,HIDE!J18)","v":2},2,{"$f":"ROUND(G40,0)","v":2},{"$f":"Dashboard!F38","v":2},"x",{"$f":"Dashboard!H38","v":8},"=",{"$f":"F40*I40","v":16}]
[null,"Teaming Area",{"$f":"SUM(F41)*10","v":10},{"$f":"CHOOSE(Dashboard!$D$8,HIDE!H19,HIDE!I19,HIDE!J19)","v":1},1,1,{"$f":"Dashboard!F39","v":1},"x",{"$f":"Dashboard!H39","v":15},"=",15]
[null,"Lounge",{"$f":"SUM(F42)*10","v":10},{"$f":"CHOOSE(Dashboard!$D$8,HIDE!H20,HIDE!I20,HIDE!J20)","v":1},1,1,{"$f":"Dashboard!F40","v":1},"x",{"$f":"Dashboard!H40","v":20},"=",20]
["Collaborative Enclosed","Work Room",{"$f":"SUM(F43)*4","v":8},{"$f":"CHOOSE(Dashboard!$D$8,HIDE!H21,HIDE!I21,HIDE!J21)","v":2},2,2,{"$f":"Dashboard!F41","v":2},"x",{"$f":"Dashboard!H41","v":15},"=",30]
[null,"Project Room",{"$f":"SUM(F44)*6","v":6},{"$f":"CHOOSE(Dashboard!$D$8,HIDE!H22,HIDE!I22,HIDE!J22)","v":1},1,1,{"$f":"Dashboard!F42","v":1},"x",{"$f":"Dashboard!H42","v":20},"=",20]
[null,"Medium Meeting Room",{"$f":"SUM(F45)*12","v":24},{"$f":"CHOOSE(Dashboard!$D$8,HIDE!H23,HIDE!I23,HIDE!J23)","v":1.8},2,2,{"$f":"Dashboard!F43","v":2},"x",{"$f":"Dashboard!H43","v":30},"=",60]
[null,"Large Meeting Room",{"$f":"SUM(F46)*20","v":20},{"$f":"CHOOSE(Dashboard!$D$8,HIDE!H24,HIDE!I24,HIDE!J24)","v":0.8},1,1,{"$f":"Dashboard!F44","v":1},"x",{"$f":"Dashboard!H44","v":60},"=",60]
["Estimated number of collaborative seats",null,{"$f":"SUM(C39:C46)","v":90},null,null,null,null,null,null,"Total space for collaborative workpoints",{"$f":"SUM(K39:K46)","v":224}]
[]
["SUPPORT  SPACES",null,"Total number of seats","Formula","Suggested quantity","rounded","Adjust quantities as required",null,"Average size (m²)",null,"Required Area"]
["General Purpose Office","Kitchenette","-",{"$f":"CHOOSE(Dashboard!$D$8,HIDE!H25,HIDE!I25,HIDE!J25)","v":0},{"$f":"IF(HIDE!$E$25<1,1,HIDE!$E$25)","v":1},{"$f":"ROUND(G50,0)","v":1},{"$f":"Dashboard!R26","v":1},"x",{"$f":"Dashboard!T26","v":15},"=",{"$f":"F50*I50","v":15}]
[null,"Equipment Area","-",{"$f":"CHOOSE(Dashboard!$D$8,HIDE!H26,HIDE!I26,HIDE!J26)","v":1.8},{"$f":"ROUND($I$12*D51/100,0)","v":2},{"$f":"ROUND(G51,0)","v":2},{"$f":"Dashboard!R27","v":2},"x",{"$f":"Dashboard!T27","v":5},"=",10]
[null,"Lockers Area (area is per FTE)","-",{"$f":"CHOOSE(Dashboard!$D$8,HIDE!H27,HIDE!I27,HIDE!J27)","v":0},{"$f":"SUM($I$12)","v":100},100,{"$f":"Dashboard!R28","v":100},"x",{"$f":"Dashboard!T28","v":0.5},"=",50]
[null,"Shared Storage","-",{"$f":"CHOOSE(Dashboard!$D$8,HIDE!H28,HIDE!I28,HIDE!J28)","v":0.5},{"$f":"ROUND($I$12*D53/100,0)","v":1},1,{"$f":"Dashboard!R29","v":1},"x",{"$f":"Dashboard!T29","v":10},"=",10]
[null,"Dedicated Server/Telecom Room - 1 per floor","-",{"$f":"CHOOSE(Dashboard!$D$8,HIDE!H29,HIDE!I29,HIDE!J29)","v":0},1,1,{"$f":"Dashboard!R30","v":1},"x",{"$f":"Dashboard!T30","v":10},"=",10]
["Extra workpoints to support adjacent SPS population","Phonebooth",{"$f":"F55","v":0},{"$f":"CHOOSE(Dashboard!$D$8,HIDE!H30,HIDE!I30,HIDE!J30)","v":6},{"$f":"ROUND($I$15*D55/100,0)","v":0},0,{"$f":"Dashboard!R31","v":0},"x",{"$f":"Dashboard!T31","v":5},"=",0]
[null,"Lounge",{"$f":"SUM(F56)*10","v":0},{"$f":"CHOOSE(Dashboard!$D$8,HIDE!H31,HIDE!I31,HIDE!J31)","v":1},{"$f":"ROUND($I$15*D56/100,0)","v":0},0,{"$f":"Dashboard!R32","v":0},"x",{"$f":"Dashboard!T32","v":20},"=",0]
[null,"Work Room",{"$f":"SUM(F57)*4","v":0},{"$f":"CHOOSE(Dashboard!$D$8,HIDE!H32,HIDE!I32,HIDE!J32)","v":2},{"$f":"ROUND($I$15*D57/100,0)","v":0},0,{"$f":"Dashboard!R33","v":0},"x",{"$f":"Dashboard!T33","v":15},"=",0]
[null,"Kitchenette","-",{"$f":"CHOOSE(Dashboard!$D$8,HIDE!H33,HIDE!I33,HIDE!J33)","v":0},0,0,{"$f":"Dashboard!R34","v":0},"x",{"$f":"Dashboard!T34","v":15},"=",0]
[null,"Lockers Area (area is per FTE)","-",{"$f":"CHOOSE(Dashboard!$D$8,HIDE!H34,HIDE!I34,HIDE!J34)","v":0},{"$f":"SUM($I$15)","v":0},0,{"$f":"Dashboard!R35","v":0},"x",{"$f":"Dashboard!T35","v":0.5},"=",0]
["Other","Custom support space","-",{"$f":"CHOOSE(Dashboard!$D$8,HIDE!H35,HIDE!I35,HIDE!J35)","v":0},1,1,{"$f":"Dashboard!R36","v":1},"x",{"$f":"Dashboard!T36","v":7.08},"=",{"$f":"F60*I60","v":7.08}]
[null,"Custom Workpoint","-",{"$f":"CHOOSE(Dashboard!$D$8,HIDE!H36,HIDE!I36,HIDE!J36)","v":0},0,0,{"$f":"Dashboard!R37","v":0},"x",{"$f":"Dashboard!T37","v":0},"=",{"$f":"F61*I61","v":0}]
[null,null,null,null,null,null,null,null,null,"Total space for support spaces",{"$f":"SUM(K50:K61)","v":102.08}]
[]
["SURPLUS/DEFICIT AMOUNT\n"]
[]
[null,null,null,null,null,null,null,null,"SPACE PLANNING SUMMARY"]
["PLANNING SPACE",null,null,null,null,null,null,null,null,"=",{"$f":"I21","v":708}]
["TOTAL INDIVIDUAL WORKPOINT SPACE  ",null,null,null,null,null,null,null,null,"=",{"$f":"K36","v":380}]
["TOTAL COLLABORATIVE SPACE  ",null,null,null,null,null,null,null,null,"=",{"$f":"K47","v":224}]
["TOTAL SUPPORT SPACE  ",null,null,null,null,null,null,null,null,"=",{"$f":"K62","v":102.08}]
["REMAINING SURPLUS* / DEFICIT* ",null,null,null,null,null,null,null,null,"=",{"$f":"SUM(K67)-(K68+K69+K70)","v":1.9199999999999591}]
[null,null,null,null,null,null,null,null,null,null,"*SIGNIFICANT SURPLUS WILL SHOW IN GREEN = ADD MORE WORKPOINTS"]
[null,null,null,null,null,null,null,null,null,null,"*SIGNIFICANT DEFICIT WILL SHOW IN RED = REDUCE SOME WORKPOINTS"]

{"sheet":"HIDE","index":3,"n_rows":60,"n_cols":16,"rows_kept":60,"cut":false,"hidden":false,"merged":[[5,0,6,1],[5,4,5,5],[5,6,5,10],[34,0,35,0],[16,0,19,0],[20,0,23,0],[24,0,28,0],[7,0,9,0],[10,0,12,0],[13,0,15,0],[29,0,33,0],[5,2,5,3]]}
["Formulas"]
[]
[]
[]
[]
["WORKPOINTS",null,"RANGE",null,"RANGE (ROUND)",null,"FOR 100 PEOPLE (1200m2u)",null,null,null,null,null,"SUGGESTED SIZE","MAX SIZE"]
[null,null,"LOW","HIGH","LOW","HIGH","MINIMUM","AUTONOMOUS","BALANCED","INTERACTIVE","MAXIMUM"]
["Primary Individual Open","Typical Workstation",{"$f":"Calculations!$I$12*0.12","v":12},{"$f":"Calculations!$I$12*0.65","v":65},{"$f":"ROUND(C8,0)","v":12},{"$f":"ROUND(D8,0)","v":65},12,58,40,25,65,null,3.5,4.5,"Typical Workstation"]
[null,"Touchdown",{"$f":"Calculations!$I$12*0.08","v":8},{"$f":"Calculations!$I$12*0.3","v":30},{"$f":"ROUND(C9,0)","v":8},30,8,15,18,20,30,null,1.5,2.5,"Touchdown"]
[null,"Focus Pod",{"$f":"Calculations!$I$12*0.02","v":2},{"$f":"Calculations!$I$12*0.12","v":12},2,12,2,8,8,6,12,null,4,5,"Focus Pod"]
["Primary Individual      Enclosed","Focus Room",{"$f":"Calculations!$I$12*0.04","v":4},{"$f":"Calculations!$I$12*0.12","v":12},4,12,4,9,8,6,12,null,7.5,10,"Focus Room"]
[null,"Ministerial Dedicated (Deputy Head or Minister) total includes 9m2 washroom.",{"$f":"Calculations!$I$12*0","v":0},{"$f":"Calculations!$I$12*0","v":0},0,0,null,null,null,null,null,null,29,29,"Ministerial Dedicated (Deputy Head or Minister) total includes 9m2 washroom."]
[null,"Study (3m2 per occupant, min. 10 occupants)",{"$f":"MIN(Calculations!$I$12*0.068,Calculations!$I$12*0.1)","v":6.8000000000000007},{"$f":"(Calculations!$I$12*0.2)","v":20},7,20,"0/10",null,null,null,20,null,3,4,"Study (3m2 per occupant, min. 10 occupants)"]
["Secondary Individual ","Reflection Point",{"$f":"Calculations!$I$12*0.01","v":1},{"$f":"Calculations!$I$12*0.04","v":4},1,4,2,4,4,4,6,null,5,5,"Reflection Point"]
[null,"Active Workstation",{"$f":"Calculations!$I$12*0","v":0},{"$f":"Calculations!$I$12*0.04","v":4},0,4,0,1,1,1,4,null,5,5,"Active Workstation"]
[null,"Phonebooth",{"$f":"Calculations!$I$12*0.04","v":4},{"$f":"Calculations!$I$12*0.08","v":8},4,8,4,6,6,6,8,null,5,5,"Phonebooth","*DATA SHEETS - 3m2 is ok for furniture "]
["Collaborative Open","Chat Point",{"$f":"Calculations!$I$12*0.01","v":1},{"$f":"Calculations!$I$12*0.05","v":5},1,5,1,1,2,3.5,5,null,3,8,"Chat Point"]
[null,"Huddle ",{"$f":"Calculations!$I$12*0.01","v":1},{"$f":"Calculations!$I$12*0.06","v":6},1,6,1,2,2.5,4,6,null,8,12,"Huddle "]
[null,"Teaming Area",{"$f":"Calculations!$I$12*0.01","v":1},{"$f":"Calculations!$I$12*0.04","v":4},1,4,1,1,2,3.6,4,null,15,25,"Teaming Area"]
[null,"Lounge",{"$f":"Calculations!$I$12*0.01","v":1},{"$f":"Calculations!$I$12*0.02","v":2},1,2,1,1,1,1,2,null,20,35,"Lounge"]
["Collaborative Enclosed","Work Room",{"$f":"Calculations!$I$12*0.02","v":2},{"$f":"Calculations!$I$12*0.06","v":6},2,6,2,2,3.8,5,6,null,15,20,"Work Room"]
[null,"Project Room",{"$f":"Calculations!$I$12*0","v":0},{"$f":"Calculations!$I$12*0.06","v":6},0,6,0,1,1.8,3,6,null,20,30,"Project Room"]
[null,"Medium Meeting Room",{"$f":"Calculations!$I$12*0.01","v":1},{"$f":"Calculations!$I$12*0.025","v":2.5},1,3,1,1.8,1.8,1.8,3,null,30,40,"Medium Meeting Room"]
[null,"Large Meeting Room",{"$f":"Calculations!$I$12*0","v":0},{"$f":"Calculations!$I$12*0.02","v":2},0,2,0,0.8,0.8,0.8,2,null,60,75,"Large Meeting Room"]
["General Purpose Office","Kitchenette",{"$f":"Calculations!$I$12*0.008","v":0.8},null,1,null,null,null,null,null,null,null,null,null,"Kitchenette"]
[null,"Equipment Area",{"$f":"Calculations!$I$12*0.01","v":1},{"$f":"Calculations!$I$12*0.02","v":2},1,2,null,1.8,1.8,1.8,null,null,5,10,"Equipment Area"]
[null,"Lockers (area is per FTE)",{"$f":"Calculations!$I$12*0.5","v":50},{"$f":"Calculations!$I$12*1.25","v":125},50,125,null,null,null,null,null,null,0.5,null,"Lockers (area is per FTE)"]
[null,"Shared Storage",{"$f":"Calculations!$I$12*0.005","v":0.5},{"$f":"Calculations!$I$12*0.02","v":2},1,2,null,0.5,0.5,0.5,null,null,10,15,"Shared Storage"]
[null,"Dedicated Server/Telecom Room - 1 per floor",null,null,null,null,null,null,null,null,null,null,10,null,"Dedicated Server/Telecom Room - 1 per floor"]
["Extra workpoints to support adjacent SPS population","Phonebooth",{"$f":"Calculations!$I$15*0.04","v":0},{"$f":"Calculations!$I$15*0.08","v":0},0,0,4,6,6,6,8,null,5,5,"Phonebooth"]
[null,"Lounge",{"$f":"Calculations!$I$15*0.01","v":0},{"$f":"Calculations!$I$15*0.02","v":0},0,0,1,1,1,1,2,null,20,35,"Lounge"]
[null,"Work Room",{"$f":"Calculations!$I$15*0.02","v":0},{"$f":"Calculations!$I$15*0.06","v":0},0,0,2,2,3.8,5,6,null,15,20,"Work Room"]
[null,"Kitchenette",0,null,0,null,null,null,null,null,null,null,null,null,"Kitchenette"]
[null,"Lockers Area (area is per FTE)",{"$f":"Calculations!$I$15*0.5","v":0},{"$f":"Calculations!$I$15*1.25","v":0},0,0,null,null,null,null,null,null,0.5,null,"Lockers (area is per FTE)"]
["Other","Custom support space",{"$f":"Calculations!$I$21*0","v":0},{"$f":"Calculations!$I$21*0.015","v":10.62},0,11]
[null,"Custom Workpoint",{"$f":"Calculations!$I$12*0","v":0},{"$f":"Calculations!$I$12*0","v":0},0,0,null,null,null,null,null,null,null,null,"Custom Collaborative Workpoint 1"]
[null,"Average size",0,{"$f":"Calculations!$I$21*1.5%","v":10.62},{"$f":"ROUND(C37,0)","v":0},{"$f":"ROUND(D37,1)","v":10.6}]
[]
[null,"NOTES - non-compliance",null,null,null,null,null,null,null,null,null,null,null,null,"NOTES - non-compliance"]
[null,"Kitchenettes: ",null,null,"Under 1 - Non-compliant",null,"NO",null,null,null,null,null,null,null,"Kitchenettes: "]
[null,null,null,null,"Over recommended amout - Non compliant (cost implications)"]
[null,null,null,null,"Under 50 FTEs, kitchenette size changes to 10m2"]
[null,"Custom workpoints",null,null,"Always non-compliant (to avoir \"rigging\" the system)",null,null,null,null,null,null,null,null,null,"Custom workpoints"]
[null,"Dedicated Server Room",null,null,"Set at 1, max of 2",null,"NO",null,null,null,null,null,null,null,"Dedicated Server Room"]
[null,"Equipment Areas",null,null,"Set at 1 per 500m2",null,null,null,null,null,null,null,null,null,"Equipment Areas"]
[null,"Study",null,null,"minimum 10, recommends 1 at 1800m2 or higher",null,null,null,null,null,null,null,null,null,"Study"]
[null,"COPY ALL COMMENTS TO B & I Sheets",null,null,null,null,null,null,null,null,null,null,null,null,"COPY ALL COMMENTS TO B & I Sheets"]
[]
[null,"Questions:",null,null,null,null,null,null,null,null,null,null,null,null,"Questions:"]
[null,"Do we want to lock sizes?, could use custom workpoint if different size required",null,null,null,null,null,null,null,null,null,null,null,null,"Do we want to lock sizes?, could use custom workpoint if different size required"]
[null,"Comments in pop-ups or off to the side?",null,null,null,null,null,null,null,null,null,null,null,null,"Comments in pop-ups or off to the side?"]
[null,"Point d'atterissage?",null,null,null,null,null,null,null,null,null,null,null,null,"Point d'atterissage?"]
[]
[]
[null,"Meeting with Dan",null,null,null,null,null,null,null,null,null,null,null,null,"Meeting with Dan"]
[null,"language",null,null,null,null,null,null,null,null,null,null,null,null,"language"]
[null,"Can consultants have SAS Calculator",null,null,null,null,null,null,null,null,null,null,null,null,"Can consultants have SAS Calculator"]
[null,"Non-compliant or Non-Standard?",null,null,null,null,null,null,null,null,null,null,null,null,"Non-compliant or Non-Standard?"]
[null,"*Please note that the following Space distribution tool is intended to be used on a floor by floor basis. For any other type of distributions, please contact ____________ "]
[null,"GCworkplace General-Purpose Office Space Calculactor "]

{"sheet":"Appendix A - Workpoints","index":4,"n_rows":27,"n_cols":9,"rows_kept":27,"cut":false,"hidden":false,"merged":[[22,0,26,0],[22,2,22,3],[23,2,23,3],[24,2,24,3],[25,2,25,3],[26,2,26,3],[11,0,13,0],[11,2,11,3],[12,2,12,3],[13,2,13,3],[18,0,21,0],[18,2,18,3],[19,2,19,3],[20,2,20,3],[21,2,21,3],[14,0,17,0],[14,2,14,3],[15,2,15,3],[16,2,16,3],[17,2,17,3],[5,0,7,0],[5,2,5,3],[6,2,6,3],[7,2,7,3],[8,0,10,0],[8,2,8,3],[10,2,10,3],[9,2,9,3],[1,0,1,8],[2,1,4,1],[2,2,4,3],[2,4,4,4],[2,5,4,5],[2,6,4,6],[2,7,4,7],[2,8,4,8],[3,0,4,0]]}
[null,null,null,null,null,null,null,"Back to 'About the Workbook'"]
[]
[null,"Name","Function",null,"Suggested Occupancy","Visual Privacy","Acoustic Privacy","Avg. Size","Recommended Zone"]
["Work Point"]
[]
["Primary Individual Open","Workstation","Mid-long term work space with access to others ",null,1,"Low-Med","Low",3.5,"Quiet"]
[null,"Touchdown","Short-term landing between other activities",null,1,"Low","Low",1.5,"Any"]
[null,"Focus Pod","Mid-long term focused work",null,1,"High","Med",4,"Quiet/Transitional"]
["Primary Individual Enclosed","Focus Room","Mid-long term focused work",null,1,"Med-High","High","7.5m²","Quiet"]
[null,"Ministerial Dedicated (Deputy Head or Minister) total includes 9m2 washroom.","Dedicated office (including 9m2 washroom) for a Minister",null,1,"Med - High","Med - High","29m²","Quiet"]
[null,"Study","Shared quiet room, to be combined in groups of minimum 6 users. Total area = 2.5m² per number of users.",null,1,"Low-Med","Low",3,"Quiet"]
["Secondary Individual ","Reflection Point","Refuge for rejuvenation and wellness",null,1,"Med- High","Med- High",5,"Transitional"]
[null,"Active Workstation","Treadmill or stationary bicycle with computer station",null,1,"Med- High","Med- High",5,"Interactive / Transitional"]
[null,"Phonebooth","Enclosed or semi-enclosed area for phone calls",null,1,"Med- High","Med- High",5,"Any"]
["Collaborative Open","Chat Point","Area for brief impromptu conversations",null,4,"Low","Low","3 m²","Interactive"]
[null,"Huddle ","Informal short-mid length meeting area, open or semi-enclosed",null,4,"Low- Med","Low- Med",8,"Interactive / Transitional"]
[null,"Teaming Area","Informal area to support team work and idea generation",null,10,"Low- Med","Low- Med",15,"Interactive / Transitional"]
[null,"Lounge","Open area with furniture for dining and/or social interaction",null,"10+","Low","Low",20,"Interactive"]
["Collaborative Enclosed","Work Room","Enclosed room for short-mid- term team work or meetings",null,4,"Med- High","High",15,"Transitional"]
[null,"Project Room","Enclosed room for longer-term project teams to assemble",null,"6+","Med- High","High",20,"Interactive / Transitional"]
[null,"Medium Meeting Room","Enclosed room for short-mid- term team work or meetings",null,12,"Med- High","High","30 m²","Transitional"]
[null,"Large Meeting Room","Enclosed room for formal meetings and presentations",null,"20+","Med- High","High","60 m²","Interactive / Transitional"]
["Support Space","Kitchenette","Kitchen millwork and appliances only - to be combined with a Lounge to include seating",null,"N/A","Med","Med",15,"Interactive"]
[null,"Equipment","Business centre and printers",null,"N/A","Low","Low","5 m²","Transitional"]
[null,"Lockers","Individual storage lockers in centralized areas",null,"N/A","Low","Low","0.5m² per FTE","Transitional"]
[null,"Shared Storage","Open or enclosed space for shared resources or coat storage",null,"N/A","Low","Low","10 m²","Transitional"]
[null,"Dedicated Telecommunications Room","Enclosed room for telecommunications systems to be accessible from outside secure zone off elevator lobby",null,"N/A","N/A","N/A","10 m²","N/A"]